fUSD/lending_fUSD_20260611
["ID","MTS","AMOUNT","RATE_DAILY","PERIOD"]
[424811035,1781177463000,-655.49484764,0.00030175,7]
[424811066,1781177463000,-309.0,0.000305,2]
[424811062,1781177463000,-3197.77586473,0.00030271,2]
[424811074,1781177463000,-747.80937859,0.00030685,2]
[424811059,1781177463000,-404.0,0.00030262,30]
[424811063,1781177463000,-8421.78,0.00030396,120]
[424811036,1781177463000,-681.86627738,0.00030175,7]
[424811039,1781177463000,-405.27478446,0.00030175,7]
[424811042,1781177463000,-159.1022608,0.00030175,7]
[424811038,1781177463000,-436.38407021,0.00030175,7]
[424811040,1781177463000,-462.49765044,0.00030175,7]
[424811045,1781177463000,-10444.16,0.000302,2]
[424811044,1781177463000,-536.41116894,0.00030175,7]
[424811041,1781177463000,-264.7728823,0.00030175,7]
[424811046,1781177463000,-478.0,0.00030213,30]
[424811047,1781177463000,-396.0,0.00030213,30]
[424811050,1781177463000,-342.0,0.00030213,30]
[424811043,1781177463000,-868.26857092,0.00030175,7]
[424811065,1781177463000,-3197.77586473,0.00030485,2]
[424811049,1781177463000,-428.0,0.00030213,30]
[424811051,1781177463000,-1296.0,0.00030213,30]
[424811055,1781177463000,-269.0,0.0003022,30]
[424811054,1781177463000,-229.0,0.00030213,30]
[424811052,1781177463000,-1860.0,0.00030213,30]
[424811053,1781177463000,-376.0,0.00030213,30]
[424811056,1781177463000,-448.91332375,0.0003022,7]
[424811060,1781177463000,-425.0,0.00030262,30]
[424811057,1781177463000,-1760.5,0.00030239,2]
[424811064,1781177463000,-588.0,0.00030471,30]
[424811048,1781177463000,-277.0,0.00030213,30]
[424811129,1781177464000,-3197.77586473,0.00030837,2]
[424811125,1781177464000,-1367.898845,0.000308,7]
[424811124,1781177464000,-1367.898845,0.000308,7]
[424811120,1781177464000,-840.326565,0.000308,7]
[424811116,1781177464000,-1504.815825,0.000308,7]
[424811121,1781177464000,-840.326565,0.000308,7]
[424811118,1781177464000,-840.326565,0.000308,7]
[424811117,1781177464000,-1504.815825,0.000308,7]
[424811119,1781177464000,-840.326565,0.000308,7]
[424811128,1781177464000,-150.0,0.00030823,7]
[424811131,1781177464000,-3197.77586473,0.00030845,2]
[424811126,1781177464000,-151.0,0.000308,7]
[424811136,1781177464000,-929.68,0.00031036,33]
[424811123,1781177464000,-1367.898845,0.000308,7]
[424811130,1781177464000,-150.0,0.00030841,2]
[424811127,1781177464000,-929.68,0.00030807,18]
[424811134,1781177464000,-303.2252678,0.00030929,2]
[424811132,1781177464000,-929.68,0.00030859,21]
[424811135,1781177464000,-7010.01782072,0.00031,30]
[424811133,1781177464000,-3197.77586473,0.00030916,2]
[424811137,1781177464000,-156.54,0.00031054,5]
[424811138,1781177464000,-208.73,0.00031054,7]
[424811141,1781177464000,-267.99,0.00031096,5]
[424811139,1781177464000,-500.95,0.00031054,30]
[424811122,1781177464000,-1367.898845,0.000308,7]
[424811112,1781177464000,-151.0,0.000308,7]
[424811088,1781177464000,-959.25626893,0.00030751,7]
[424811114,1781177464000,-1504.815825,0.000308,7]
[424811140,1781177464000,-8421.78,0.00031054,120]
[424811094,1781177464000,-760.84203902,0.00030751,7]
[424811090,1781177464000,-970.11430176,0.00030751,7]
[424811092,1781177464000,-873.9866565,0.00030751,2]
[424811089,1781177464000,-1048.06068507,0.00030751,7]
[424811096,1781177464000,-823.37715919,0.00030751,7]
[424811093,1781177464000,-775.30782096,0.00030751,7]
[424811097,1781177464000,-798.68533386,0.00030751,7]
[424811095,1781177464000,-935.32962125,0.00030751,7]
[424811104,1781177464000,-929.68,0.0003078,21]
[424811106,1781177464000,-55784.840692,0.000308,3]
[424811110,1781177464000,-341.397837,0.000308,7]
[424811102,1781177464000,-151.0,0.00030774,7]
[424811105,1781177464000,-200.0,0.000308,11]
[424811108,1781177464000,-341.397837,0.000308,7]
[424811100,1781177464000,-151.0,0.00030774,7]
[424811099,1781177464000,-50764.7705431,0.00030774,2]
[424811101,1781177464000,-151.0,0.00030774,7]
[424811107,1781177464000,-151.0,0.000308,7]
[424811098,1781177464000,-891.9292433,0.00030751,7]
[424811109,1781177464000,-341.397837,0.000308,7]
[424811115,1781177464000,-1504.815825,0.000308,7]
[424811113,1781177464000,-151.0,0.000308,7]
[424811111,1781177464000,-341.397837,0.000308,7]
[424811103,1781177464000,-215.639621,0.00030774,7]
[424811142,1781177464000,-350.0,0.00031099,18]
[424811091,1781177464000,-1253.86846466,0.00030751,7]
[424811143,1781177464000,-15000.0,0.00031109,2]
[424811168,1781177464000,-1107.0,0.00031262,30]
[424811171,1781177464000,-3197.77586473,0.00031273,2]
[424811179,1781177464000,-3197.77586473,0.00031566,2]
[424811186,1781177464000,-1357.88550101,0.00031615,7]
[424811177,1781177464000,-979.23078575,0.00031555,2]
[424811178,1781177464000,-350.0,0.00031558,3]
[424811185,1781177464000,-1014.99078572,0.00031615,7]
[424811176,1781177464000,-150.315466,0.00031547,2]
[424811187,1781177464000,-1151.10752271,0.00031615,7]
[424811180,1781177464000,-150.0,0.00031575,30]
[424811184,1781177464000,-1067.32452474,0.00031615,7]
[424811181,1781177464000,-183.66666667,0.00031578,2]
[424811182,1781177464000,-3197.77586473,0.00031588,2]
[424811188,1781177464000,-1257.67282208,0.00031615,7]
[424811189,1781177464000,-1151.8191712,0.00031615,7]
[424811191,1781177464000,-1048.7839878,0.00031615,2]
[424811194,1781177464000,-988.05259102,0.00031615,7]
[424811190,1781177464000,-1504.6421576,0.00031615,7]
[424811193,1781177464000,-1122.39554549,0.00031615,7]
[424811197,1781177464000,-376.38,0.00031631,30]
[424811198,1781177464000,-150.0,0.00031651,30]
[424811196,1781177464000,-1070.31509195,0.00031615,7]
[424811195,1781177464000,-958.42240063,0.00031615,7]
[424811192,1781177464000,-1185.93837589,0.00031615,7]
[424811154,1781177464000,-277.0,0.00031213,30]
[424811172,1781177464000,-3197.77586473,0.00031339,2]
[424811173,1781177464000,-150.0,0.000315,30]
[424811183,1781177464000,-150.0,0.00031613,30]
[424811170,1781177464000,-425.0,0.00031262,30]
[424811144,1781177464000,-376.38,0.00031133,30]
[424811174,1781177464000,-3197.77586473,0.00031514,2]
[424811145,1781177464000,-647.0,0.00031152,14]
[424811147,1781177464000,-3197.77586473,0.00031153,2]
[424811149,1781177464000,-1000.0,0.000312,7]
[424811148,1781177464000,-929.68,0.00031165,30]
[424811150,1781177464000,-356.0,0.00031204,3]
[424811152,1781177464000,-478.0,0.00031213,30]
[424811151,1781177464000,-3197.77586473,0.00031204,2]
[424811146,1781177464000,-3197.77586473,0.00031152,2]
[424811157,1781177464000,-1296.0,0.00031213,30]
[424811155,1781177464000,-428.0,0.00031213,30]
[424811159,1781177464000,-376.0,0.00031213,30]
[424811153,1781177464000,-396.0,0.00031213,30]
[424811164,1781177464000,-2000.0,0.00031233,2]
[424811169,1781177464000,-404.0,0.00031262,30]
[424811160,1781177464000,-229.0,0.00031213,30]
[424811166,1781177464000,-260.4103811,0.00031235,2]
[424811175,1781177464000,-150.0,0.00031538,30]
[424811156,1781177464000,-342.0,0.00031213,30]
[424811165,1781177464000,-158.71838309,0.00031235,2]
[424811167,1781177464000,-151.0,0.00031235,2]
[424811162,1781177464000,-500.0,0.00031233,60]
[424811161,1781177464000,-269.0,0.0003122,30]
[424811158,1781177464000,-1860.0,0.00031213,30]
[424811163,1781177464000,-500.0,0.00031233,60]
[424811239,1781177465000,-238.05287882,0.00032,120]
[424811229,1781177465000,-151.0,0.00031929,2]
[424811231,1781177465000,-151.0,0.00031929,2]
[424811221,1781177465000,-151.0,0.00031929,2]
[424811227,1781177465000,-225.67,0.00031929,2]
[424811232,1781177465000,-151.0,0.00031929,2]
[424811236,1781177465000,-167.01748228,0.00032,120]
[424811234,1781177465000,-150.0,0.00031952,30]
[424811233,1781177465000,-397.5,0.0003195,30]
[424811235,1781177465000,-150.0,0.00031989,30]
[424811238,1781177465000,-178.25990568,0.00032,120]
[424811242,1781177465000,-199.36769842,0.00032,120]
[424811252,1781177465000,-1084.36213423,0.00032,120]
[424811237,1781177465000,-256.81170506,0.00032,120]
[424811241,1781177465000,-317.00858737,0.00032,120]
[424811244,1781177465000,-168.39780961,0.00032,120]
[424811251,1781177465000,-340.21835921,0.00032,120]
[424811250,1781177465000,-185.87068679,0.00032,120]
[424811245,1781177465000,-178.48085532,0.00032,120]
[424811243,1781177465000,-357.32891615,0.00032,120]
[424811246,1781177465000,-426.03185977,0.00032,120]
[424811247,1781177465000,-218.50810246,0.00032,120]
[424811248,1781177465000,-1227.44520392,0.00032,120]
[424811225,1781177465000,-151.0,0.00031929,2]
[424811240,1781177465000,-359.8050798,0.00032,120]
[424811226,1781177465000,-151.63,0.00031929,2]
[424811199,1781177465000,-150.0,0.00031688,30]
[424811230,1781177465000,-151.0,0.00031929,2]
[424811253,1781177465000,-1295.83776844,0.00032,120]
[424811209,1781177465000,-200.0,0.000318,12]
[424811202,1781177465000,-260.0,0.00031728,21]
[424811201,1781177465000,-150.0,0.00031726,30]
[424811208,1781177465000,-4853.65,0.00031788,30]
[424811203,1781177465000,-1274.0,0.00031763,2]
[424811200,1781177465000,-8421.78,0.00031711,120]
[424811204,1781177465000,-1227.0,0.00031763,2]
[424811206,1781177465000,-647.0,0.00031778,14]
[424811207,1781177465000,-270.0455652,0.00031783,2]
[424811205,1781177465000,-150.0,0.00031763,30]
[424811212,1781177465000,-150.0,0.00031823,7]
[424811211,1781177465000,-150.0,0.00031801,30]
[424811213,1781177465000,-150.0,0.00031839,30]
[424811210,1781177465000,-10444.16,0.000318,2]
[424811219,1781177465000,-151.17,0.00031929,2]
[424811215,1781177465000,-150.0,0.00031876,30]
[424811217,1781177465000,-10444.16,0.000319,2]
[424811218,1781177465000,-150.0,0.00031914,30]
[424811216,1781177465000,-16042.01622808,0.00031884,2]
[424811214,1781177465000,-2318.0,0.00031844,3]
[424811223,1781177465000,-151.0,0.00031929,2]
[424811224,1781177465000,-151.0,0.00031929,2]
[424811220,1781177465000,-151.0,0.00031929,2]
[424811222,1781177465000,-151.0,0.00031929,2]
[424811228,1781177465000,-151.0,0.00031929,2]
[424811249,1781177465000,-188.43175161,0.00032,120]
[424811259,1781177465000,-30212.0,0.00032,120]
[424811256,1781177465000,-195.49555799,0.00032,120]
[424811286,1781177465000,-150.0,0.00032215,30]
[424811284,1781177465000,-376.0,0.00032213,30]
[424811285,1781177465000,-229.0,0.00032213,30]
[424811288,1781177465000,-813.0,0.0003222,2]
[424811291,1781177465000,-100000.0,0.00032232,60]
[424811290,1781177465000,-100000.0,0.00032232,90]
[424811292,1781177465000,-100000.0,0.00032232,30]
[424811299,1781177465000,-1350.0,0.00032232,60]
[424811296,1781177465000,-2700.0,0.00032232,120]
[424811293,1781177465000,-100000.0,0.00032232,7]
[424811298,1781177465000,-1350.0,0.00032232,60]
[424811297,1781177465000,-2604.0,0.00032232,120]
[424811294,1781177465000,-287.15074764,0.00032232,2]
[424811295,1781177465000,-2700.0,0.00032232,120]
[424811300,1781177465000,-1302.0,0.00032232,60]
[424811301,1781177465000,-161.0,0.00032237,11]
[424811303,1781177465000,-1107.0,0.00032262,30]
[424811302,1781177465000,-150.0,0.00032253,30]
[424811305,1781177465000,-425.0,0.00032262,30]
[424811265,1781177465000,-323.22,0.00032055,5]
[424811308,1781177465000,-500.95,0.00032275,30]
[424811309,1781177465000,-150.0,0.0003229,30]
[424811307,1781177465000,-208.73,0.00032275,7]
[424811306,1781177465000,-156.54,0.00032275,5]
[424811310,1781177465000,-929.68,0.00032305,25]
[424811287,1781177465000,-269.0,0.0003222,30]
[424811281,1781177465000,-342.0,0.00032213,30]
[424811304,1781177465000,-404.0,0.00032262,30]
[424811289,1781177465000,-100000.0,0.00032232,120]
[424811283,1781177465000,-1860.0,0.00032213,30]
[424811255,1781177465000,-1220.71076251,0.00032,120]
[424811254,1781177465000,-180.00618676,0.00032,120]
[424811264,1781177465000,-929.68,0.0003204,33]
[424811262,1781177465000,-150.0,0.00032027,30]
[424811263,1781177465000,-152.26468,0.00032032,7]
[424811261,1781177465000,-1791.43,0.00032,18]
[424811260,1781177465000,-700.0,0.00032,2]
[424811258,1781177465000,-273.13512808,0.00032,120]
[424811266,1781177465000,-500.1,0.00032063,3]
[424811269,1781177465000,-376.38,0.0003213,30]
[424811268,1781177465000,-150.0,0.00032102,30]
[424811257,1781177465000,-308.23767071,0.00032,120]
[424811273,1781177465000,-150.0,0.00032144,30]
[424811271,1781177465000,-150.0,0.00032144,30]
[424811282,1781177465000,-1296.0,0.00032213,30]
[424811279,1781177465000,-277.0,0.00032213,30]
[424811276,1781177465000,-1760.5,0.0003221,5]
[424811272,1781177465000,-930.56969257,0.00032144,30]
[424811280,1781177465000,-428.0,0.00032213,30]
[424811277,1781177465000,-478.0,0.00032213,30]
[424811267,1781177465000,-150.0,0.00032065,30]
[424811274,1781177465000,-439.24814527,0.00032144,30]
[424811270,1781177465000,-150.0,0.0003214,30]
[424811275,1781177465000,-150.0,0.00032177,30]
[424811278,1781177465000,-396.0,0.00032213,30]
[424811336,1781177466000,-150.0,0.00032554,30]
[424811340,1781177466000,-900.56,0.00032588,2]
[424811337,1781177466000,-259.63672014,0.00032555,2]
[424811335,1781177466000,-152.0,0.00032529,120]
[424811338,1781177466000,-979.23078575,0.00032555,2]
[424811339,1781177466000,-206.29021419,0.00032557,7]
[424811343,1781177466000,-151.0,0.00032597,14]
[424811341,1781177466000,-330.09866559,0.00032588,2]
[424811353,1781177466000,-427.152321,0.000326,7]
[424811352,1781177466000,-427.152321,0.000326,7]
[424811346,1781177466000,-151.0,0.000326,7]
[424811345,1781177466000,-150.0,0.000326,2]
[424811347,1781177466000,-151.0,0.000326,7]
[424811351,1781177466000,-427.152321,0.000326,7]
[424811349,1781177466000,-151.0,0.000326,7]
[424811348,1781177466000,-151.0,0.000326,7]
[424811350,1781177466000,-427.152321,0.000326,7]
[424811354,1781177466000,-200.0,0.000326,10]
[424811332,1781177466000,-76779.44976311,0.000325,2]
[424811342,1781177466000,-150.0,0.00032591,30]
[424811331,1781177466000,-3000.0,0.00032494,10]
[424811315,1781177466000,-929.68,0.00032336,33]
[424811330,1781177466000,-198.79480972,0.00032487,30]
[424811312,1781177466000,-378.1732,0.0003231,29]
[424811311,1781177466000,-378.1732,0.0003231,29]
[424811313,1781177466000,-150.0,0.00032328,30]
[424811318,1781177466000,-200.0,0.00032374,2]
[424811322,1781177466000,-411.46285523,0.00032395,2]
[424811314,1781177466000,-280.03725111,0.00032331,2]
[424811319,1781177466000,-350.0,0.00032379,24]
[424811320,1781177466000,-150.0,0.00032383,2]
[424811317,1781177466000,-8421.78,0.00032369,120]
[424811321,1781177466000,-193.53850199,0.00032395,2]
[424811316,1781177466000,-150.0,0.00032366,30]
[424811333,1781177466000,-1000.0,0.000325,30]
[424811324,1781177466000,-282.08925685,0.00032398,2]
[424811326,1781177466000,-647.0,0.00032404,15]
[424811329,1781177466000,-197.15889241,0.00032487,30]
[424811327,1781177466000,-150.0,0.00032441,30]
[424811323,1781177466000,-156.71625381,0.00032398,2]
[424811328,1781177466000,-150.0,0.00032478,30]
[424811325,1781177466000,-150.0,0.00032403,30]
[424811334,1781177466000,-150.0,0.00032516,30]
[424811356,1781177466000,-376.38,0.00032628,30]
[424811344,1781177466000,-635579.60273873,0.000326,5]
[424811355,1781177466000,-152.0,0.0003261,120]
[424811384,1781177466000,-378.1732,0.00032636,33]
[424811380,1781177466000,-1000.0,0.00032636,2]
[424811391,1781177466000,-151.0,0.00032662,2]
[424811383,1781177466000,-1008.79341403,0.00032636,2]
[424811390,1781177466000,-151.02,0.00032662,2]
[424811389,1781177466000,-151.0,0.00032657,14]
[424811386,1781177466000,-378.1732,0.00032636,33]
[424811388,1781177466000,-409.28734248,0.00032647,2]
[424811385,1781177466000,-378.1732,0.00032636,33]
[424811382,1781177466000,-1000.0,0.00032636,2]
[424811387,1781177466000,-378.1732,0.00032636,33]
[424811395,1781177466000,-151.22,0.00032662,2]
[424811394,1781177466000,-151.24,0.00032662,2]
[424811396,1781177466000,-151.0,0.00032662,2]
[424811397,1781177466000,-151.0,0.00032662,2]
[424811399,1781177466000,-202.25,0.00032662,2]
[424811401,1781177466000,-151.0,0.00032662,2]
[424811398,1781177466000,-151.0,0.00032662,2]
[424811400,1781177466000,-151.0,0.00032662,2]
[424811357,1781177466000,-150.0,0.00032629,30]
[424811392,1781177466000,-151.14,0.00032662,2]
[424811381,1781177466000,-1000.0,0.00032636,2]
[424811393,1781177466000,-151.0,0.00032662,2]
[424811378,1781177466000,-1000.0,0.00032636,2]
[424811377,1781177466000,-1000.0,0.00032636,2]
[424811359,1781177466000,-1000.0,0.00032636,2]
[424811358,1781177466000,-232.51049563,0.00032636,2]
[424811362,1781177466000,-1000.0,0.00032636,2]
[424811361,1781177466000,-1000.0,0.00032636,2]
[424811360,1781177466000,-1000.0,0.00032636,2]
[424811368,1781177466000,-1000.0,0.00032636,2]
[424811364,1781177466000,-1000.0,0.00032636,2]
[424811363,1781177466000,-1000.0,0.00032636,2]
[424811366,1781177466000,-1000.0,0.00032636,2]
[424811365,1781177466000,-1000.0,0.00032636,2]
[424811369,1781177466000,-1000.0,0.00032636,2]
[424811371,1781177466000,-1000.0,0.00032636,2]
[424811374,1781177466000,-1000.0,0.00032636,2]
[424811373,1781177466000,-1000.0,0.00032636,2]
[424811370,1781177466000,-1000.0,0.00032636,2]
[424811379,1781177466000,-1000.0,0.00032636,2]
[424811375,1781177466000,-1000.0,0.00032636,2]
[424811372,1781177466000,-1000.0,0.00032636,2]
[424811367,1781177466000,-1000.0,0.00032636,2]
[424811376,1781177466000,-1000.0,0.00032636,2]
[424811428,1781177467000,-800.0,0.00032677,12]
[424811440,1781177467000,-929.68,0.00032727,18]
[424811443,1781177467000,-573.23,0.00032751,2]
[424811436,1781177467000,-150.0,0.00032704,30]
[424811432,1781177467000,-800.0,0.00032677,12]
[424811438,1781177467000,-3643.0,0.00032715,2]
[424811434,1781177467000,-300.0,0.000327,10]
[424811435,1781177467000,-201.72014,0.000327,7]
[424811431,1781177467000,-800.0,0.00032677,12]
[424811442,1781177467000,-300.17486916,0.00032748,30]
[424811433,1781177467000,-195.80192935,0.00032677,12]
[424811441,1781177467000,-150.0,0.00032742,30]
[424811456,1781177467000,-150.0,0.00032823,7]
[424811445,1781177467000,-404.36685192,0.0003277,2]
[424811447,1781177467000,-152.0,0.00032797,7]
[424811448,1781177467000,-200.0,0.000328,12]
[424811450,1781177467000,-200.0,0.000328,2]
[424811446,1781177467000,-150.0,0.0003278,30]
[424811449,1781177467000,-1092.0,0.000328,30]
[424811462,1781177467000,-400.0,0.0003287,2]
[424811451,1781177467000,-2054.95234238,0.000328,2]
[424811463,1781177467000,-400.0,0.0003287,2]
[424811460,1781177467000,-400.0,0.0003287,2]
[424811457,1781177467000,-152.0,0.00032847,7]
[424811430,1781177467000,-800.0,0.00032677,12]
[424811444,1781177467000,-185.09,0.00032751,2]
[424811439,1781177467000,-6076.0,0.00032715,2]
[424811404,1781177467000,-151.0,0.00032662,2]
[424811429,1781177467000,-800.0,0.00032677,12]
[424811402,1781177467000,-151.49,0.00032662,2]
[424811403,1781177467000,-151.0,0.00032662,2]
[424811405,1781177467000,-151.0,0.00032662,2]
[424811413,1781177467000,-151.0,0.00032662,2]
[424811414,1781177467000,-151.0,0.00032662,2]
[424811455,1781177467000,-155.29746826,0.00032819,7]
[424811406,1781177467000,-151.0,0.00032662,2]
[424811409,1781177467000,-151.0,0.00032662,2]
[424811407,1781177467000,-151.0,0.00032662,2]
[424811408,1781177467000,-151.0,0.00032662,2]
[424811410,1781177467000,-151.0,0.00032662,2]
[424811411,1781177467000,-169.01,0.00032662,2]
[424811437,1781177467000,-213.08619386,0.00032708,14]
[424811412,1781177467000,-151.0,0.00032662,2]
[424811417,1781177467000,-151.0,0.00032662,2]
[424811418,1781177467000,-151.0,0.00032662,2]
[424811422,1781177467000,-151.0,0.00032662,2]
[424811419,1781177467000,-151.0,0.00032662,2]
[424811426,1781177467000,-374.79,0.00032673,2]
[424811420,1781177467000,-151.0,0.00032662,2]
[424811427,1781177467000,-800.0,0.00032677,12]
[424811424,1781177467000,-151.0,0.00032662,2]
[424811416,1781177467000,-151.0,0.00032662,2]
[424811423,1781177467000,-151.0,0.00032662,2]
[424811421,1781177467000,-151.0,0.00032662,2]
[424811425,1781177467000,-150.0,0.00032667,30]
[424811415,1781177467000,-151.0,0.00032662,2]
[424811453,1781177467000,-242.65352317,0.00032819,7]
[424811452,1781177467000,-150.0,0.00032817,30]
[424811459,1781177467000,-202.0,0.0003286,30]
[424811490,1781177467000,-151.0,0.00032877,7]
[424811489,1781177467000,-151.0,0.00032877,7]
[424811491,1781177467000,-161.684617,0.00032877,7]
[424811494,1781177467000,-151.0,0.00032877,7]
[424811498,1781177467000,-151.0,0.00032877,7]
[424811493,1781177467000,-151.0,0.00032877,7]
[424811497,1781177467000,-151.0,0.00032877,7]
[424811499,1781177467000,-151.0,0.00032877,7]
[424811510,1781177467000,-451.25,0.00032877,7]
[424811509,1781177467000,-500.0,0.00032877,7]
[424811507,1781177467000,-500.0,0.00032877,7]
[424811508,1781177467000,-451.25,0.00032877,7]
[424811502,1781177467000,-500.0,0.00032877,7]
[424811503,1781177467000,-500.0,0.00032877,7]
[424811504,1781177467000,-500.0,0.00032877,7]
[424811501,1781177467000,-500.0,0.00032877,7]
[424811506,1781177467000,-500.0,0.00032877,7]
[424811505,1781177467000,-500.0,0.00032877,7]
[424811511,1781177467000,-500.0,0.00032877,7]
[424811513,1781177467000,-500.0,0.00032877,7]
[424811512,1781177467000,-451.25,0.00032877,7]
[424811515,1781177467000,-500.0,0.00032877,7]
[424811516,1781177467000,-451.25,0.00032877,7]
[424811517,1781177467000,-151.0,0.00032877,7]
[424811514,1781177467000,-451.25,0.00032877,7]
[424811454,1781177467000,-378.53634984,0.00032819,7]
[424811518,1781177467000,-500.0,0.00032877,7]
[424811492,1781177467000,-151.0,0.00032877,7]
[424811496,1781177467000,-151.0,0.00032877,7]
[424811500,1781177467000,-264.996781,0.00032877,7]
[424811488,1781177467000,-151.0,0.00032877,7]
[424811458,1781177467000,-150.0,0.00032855,30]
[424811461,1781177467000,-400.0,0.0003287,2]
[424811495,1781177467000,-151.0,0.00032877,7]
[424811464,1781177467000,-300.94623948,0.0003287,2]
[424811466,1781177467000,-100000.0,0.00032876,7]
[424811467,1781177467000,-151.0,0.00032877,7]
[424811465,1781177467000,-151.0,0.00032874,14]
[424811470,1781177467000,-171.792209,0.00032877,7]
[424811468,1781177467000,-253.785204,0.00032877,7]
[424811469,1781177467000,-177.803249,0.00032877,7]
[424811475,1781177467000,-179.328283,0.00032877,7]
[424811474,1781177467000,-151.0,0.00032877,7]
[424811471,1781177467000,-151.0,0.00032877,7]
[424811473,1781177467000,-151.0,0.00032877,7]
[424811481,1781177467000,-251.846647,0.00032877,7]
[424811484,1781177467000,-151.0,0.00032877,7]
[424811472,1781177467000,-151.059707,0.00032877,7]
[424811483,1781177467000,-151.0,0.00032877,7]
[424811480,1781177467000,-151.0,0.00032877,7]
[424811482,1781177467000,-151.0,0.00032877,7]
[424811478,1781177467000,-158.506487,0.00032877,7]
[424811479,1781177467000,-151.0,0.00032877,7]
[424811476,1781177467000,-151.0,0.00032877,7]
[424811485,1781177467000,-152.148738,0.00032877,7]
[424811486,1781177467000,-1000.0,0.00032877,50]
[424811477,1781177467000,-151.0,0.00032877,7]
[424811487,1781177467000,-1015.0,0.00032877,50]
[424811557,1781177468000,-200.480374,0.00032877,7]
[424811564,1781177468000,-301.299069,0.00032877,7]
[424811561,1781177468000,-301.299069,0.00032877,7]
[424811556,1781177468000,-151.0,0.00032877,7]
[424811558,1781177468000,-301.299069,0.00032877,7]
[424811548,1781177468000,-451.25,0.00032877,7]
[424811554,1781177468000,-151.0,0.00032877,7]
[424811552,1781177468000,-151.0,0.00032877,7]
[424811550,1781177468000,-151.0,0.00032877,7]
[424811553,1781177468000,-451.25,0.00032877,7]
[424811551,1781177468000,-451.25,0.00032877,7]
[424811565,1781177468000,-301.299069,0.00032877,7]
[424811555,1781177468000,-451.25,0.00032877,7]
[424811563,1781177468000,-301.299069,0.00032877,7]
[424811574,1781177468000,-301.299069,0.00032877,7]
[424811562,1781177468000,-301.299069,0.00032877,7]
[424811569,1781177468000,-301.299069,0.00032877,7]
[424811566,1781177468000,-301.299069,0.00032877,7]
[424811573,1781177468000,-301.299069,0.00032877,7]
[424811567,1781177468000,-301.299069,0.00032877,7]
[424811570,1781177468000,-301.299069,0.00032877,7]
[424811568,1781177468000,-301.299069,0.00032877,7]
[424811572,1781177468000,-301.299069,0.00032877,7]
[424811575,1781177468000,-301.299069,0.00032877,7]
[424811585,1781177468000,-187.260041,0.00032877,7]
[424811576,1781177468000,-301.299069,0.00032877,7]
[424811577,1781177468000,-301.29906,0.00032877,7]
[424811559,1781177468000,-301.299069,0.00032877,7]
[424811571,1781177468000,-301.299069,0.00032877,7]
[424811560,1781177468000,-301.299069,0.00032877,7]
[424811519,1781177468000,-151.0,0.00032877,7]
[424811542,1781177468000,-500.0,0.00032877,7]
[424811584,1781177468000,-187.260041,0.00032877,7]
[424811520,1781177468000,-451.25,0.00032877,7]
[424811521,1781177468000,-500.0,0.00032877,7]
[424811523,1781177468000,-451.25,0.00032877,7]
[424811531,1781177468000,-151.0,0.00032877,7]
[424811530,1781177468000,-500.0,0.00032877,7]
[424811532,1781177468000,-451.25,0.00032877,7]